fUSD/lending_fUSD_20260319
["ID","MTS","AMOUNT","RATE_DAILY","PERIOD"]
[408573056,1773899459055,-1651.820882,0.00015,2]
[408573057,1773899459067,-151.0,0.00015,2]
[408573058,1773899459077,-151.0,0.00015,2]
[408573059,1773899459088,-151.0,0.00015,2]
[408573060,1773899459099,-2612.845104,0.00015,2]
[408573061,1773899459110,-861.959583,0.00015,2]
[408573062,1773899459121,-166.050003,0.00015,2]
[408573063,1773899459132,-268.471866,0.00015,2]
[408573064,1773899459143,-2612.845104,0.00015,2]
[408573065,1773899459153,-252.461609,0.00015,2]
[408573066,1773899459168,-861.959583,0.00015,2]
[408573067,1773899459178,-2612.845104,0.00015,2]
[408573068,1773899459189,-861.959583,0.00015,2]
[408573069,1773899459200,-213.824497,0.00015,2]
[408573070,1773899459211,-2612.845104,0.00015,2]
[408573071,1773899459222,-252.461609,0.00015,2]
[408573072,1773899459233,-213.824497,0.00015,2]
[408573073,1773899459243,-252.461609,0.00015,2]
[408573074,1773899459254,-151.0,0.00015,2]
[408573075,1773899459265,-213.824497,0.00015,2]
[408573076,1773899459276,-861.959583,0.00015,2]
[408573077,1773899459287,-252.461609,0.00015,2]
[408573078,1773899459298,-766.398952,0.00015,2]
[408573079,1773899459308,-213.824497,0.00015,2]
[408573080,1773899459320,-912.434485,0.00015,2]
[408573081,1773899459331,-151.0,0.00015,2]
[408573082,1773899459341,-766.398952,0.00015,2]
[408573083,1773899459352,-912.434485,0.00015,2]
[408573084,1773899459363,-151.0,0.00015,2]
[408573085,1773899459374,-151.0,0.00015,2]
[408573086,1773899459384,-151.0,0.00015,2]
[408573087,1773899459395,-912.434485,0.00015,2]
[408573088,1773899459406,-278.601748,0.00015,2]
[408573089,1773899459417,-151.0,0.00015,2]
[408573090,1773899459428,-912.434485,0.00015,2]
[408573091,1773899459439,-177.199848,0.00015,2]
[408573092,1773899459449,-151.0,0.00015,2]
[408573093,1773899459459,-766.398952,0.00015,2]
[408573094,1773899459471,-766.398952,0.00015,2]
[408573095,1773899459481,-151.0,0.00015,2]
[408573096,1773899459492,-298.751774,0.00015,2]
[408573097,1773899459504,-760.206708,0.00015,2]
[408573098,1773899459515,-760.206708,0.00015,2]
[408573099,1773899459526,-760.206708,0.00015,2]
[408573100,1773899459539,-760.206708,0.00015,2]
[408573101,1773899459551,-1951.875944,0.00015,2]
[408573102,1773899459562,-151.0,0.00015,2]
[408573103,1773899459573,-1951.875944,0.00015,2]
[408573104,1773899459584,-1951.875944,0.00015,2]
[408573105,1773899459596,-319.911065,0.00015,2]
[408573106,1773899459607,-151.0,0.00015,2]
[408573107,1773899459619,-319.911065,0.00015,2]
[408573108,1773899459630,-1951.875944,0.00015,2]
[408573109,1773899459643,-319.911065,0.00015,2]
[408573110,1773899459654,-151.0,0.00015,2]
[408573111,1773899459665,-319.911065,0.00015,2]
[408573112,1773899459675,-151.0,0.00015,2]
[408573113,1773899459686,-277.136968,0.00015,2]
[408573114,1773899459697,-277.136968,0.00015,2]
[408573115,1773899459708,-157.56932,0.00015,2]
[408573116,1773899459719,-500.0,0.00015,2]
[408573117,1773899459730,-277.136968,0.00015,2]
[408573118,1773899459741,-351.175175,0.00015,2]
[408573119,1773899459751,-277.136968,0.00015,2]
[408573120,1773899459762,-351.175175,0.00015,2]
[408573121,1773899459772,-492.914894,0.00015,2]
[408573122,1773899459783,-151.0,0.00015,2]
[408573123,1773899459794,-516.167895,0.00015,2]
[408573124,1773899459804,-351.175175,0.00015,2]
[408573125,1773899459815,-492.914894,0.00015,2]
[408573126,1773899459826,-516.167895,0.00015,2]
[408573127,1773899459837,-351.175175,0.00015,2]
[408573128,1773899459848,-492.914894,0.00015,2]
[408573129,1773899459859,-516.167895,0.00015,2]
[408573130,1773899459871,-151.0,0.00015,2]
[408573131,1773899459882,-516.167895,0.00015,2]
[408573132,1773899459893,-492.914894,0.00015,2]
[408573133,1773899459904,-151.0,0.00015,2]
[408573134,1773899459915,-173.361863,0.00015,2]
[408573135,1773899459925,-2289.291087,0.00015,2]
[408573136,1773899459936,-276.134429,0.00015,2]
[408573137,1773899459947,-603.024672,0.00015,2]
[408573138,1773899459958,-151.0,0.00015,2]
[408573139,1773899459968,-2289.291087,0.00015,2]
[408573140,1773899459979,-276.134429,0.00015,2]
[408573141,1773899459989,-770.064578,0.00015,2]
[408573142,1773899460000,-603.024672,0.00015,2]
[408573143,1773899460011,-151.0,0.00015,2]
[408573144,1773899460022,-2289.291087,0.00015,2]
[408573145,1773899460032,-276.134429,0.00015,2]
[408573146,1773899460043,-770.064578,0.00015,2]
[408573147,1773899460053,-603.024672,0.00015,2]
[408573148,1773899460064,-276.134429,0.00015,2]
[408573149,1773899460075,-2289.291087,0.00015,2]
[408573150,1773899460086,-770.064578,0.00015,2]
[408573151,1773899460096,-603.024672,0.00015,2]
[408573152,1773899460106,-770.064578,0.00015,2]
[408573153,1773899460117,-151.0,0.00015,2]
[408573154,1773899460127,-151.0,0.00015,2]
[408573155,1773899460138,-151.0,0.00015,2]
[408573156,1773899460149,-162.676202,0.00015,2]
[408573157,1773899460159,-151.0,0.00015,2]
[408573158,1773899460170,-151.0,0.00015,2]
[408573159,1773899460180,-151.0,0.00015,2]
[408573160,1773899460191,-606.713391,0.00015,2]
[408573161,1773899460202,-222.271664,0.00015,2]
[408573162,1773899460212,-3178.349364,0.00015,2]
[408573163,1773899460223,-151.0,0.00015,2]
[408573164,1773899460235,-151.0,0.00015,2]
[408573165,1773899460245,-222.271664,0.00015,2]
[408573166,1773899460256,-3178.349364,0.00015,2]
[408573167,1773899460267,-1291.432253,0.00015,2]
[408573168,1773899460277,-606.713391,0.00015,2]
[408573169,1773899460288,-163.372479,0.00015,2]
[408573170,1773899460298,-3178.349364,0.00015,2]
[408573171,1773899460309,-1291.432253,0.00015,2]
[408573172,1773899460319,-222.271664,0.00015,2]
[408573173,1773899460330,-606.713391,0.00015,2]
[408573174,1773899460341,-3178.349364,0.00015,2]
[408573175,1773899460352,-1291.432253,0.00015,2]
[408573176,1773899460362,-222.271664,0.00015,2]
[408573177,1773899460373,-606.713391,0.00015,2]
[408573178,1773899460384,-1291.432253,0.00015,2]
[408573179,1773899460395,-422.278006,0.00015,2]
[408573180,1773899460406,-422.278006,0.00015,2]
[408573181,1773899460417,-422.278006,0.00015,2]
[408573182,1773899460427,-151.0,0.00015,2]
[408573183,1773899460438,-151.0,0.00015,2]
[408573184,1773899460449,-422.278006,0.00015,2]
[408573185,1773899460460,-1349.424833,0.00015,2]
[408573186,1773899460471,-1349.424833,0.00015,2]
[408573187,1773899460482,-1349.424833,0.00015,2]
[408573188,1773899460493,-591.831781,0.00015,2]
[408573189,1773899460504,-178.05707,0.00015,2]
[408573190,1773899460515,-1349.424833,0.00015,2]
[408573191,1773899460525,-591.831781,0.00015,2]
[408573192,1773899460536,-178.05707,0.00015,2]
[408573193,1773899460879,-151.0,0.00015,2]
[408573194,1773899460903,-591.831781,0.00015,2]
[408573195,1773899460920,-178.05707,0.00015,2]
[408573196,1773899460929,-3847.171813,0.00015,2]
[408573197,1773899460938,-591.831781,0.00015,2]
[408573198,1773899460948,-151.0,0.00015,2]
[408573199,1773899460957,-3847.171813,0.00015,2]
[408573200,1773899460967,-178.05707,0.00015,2]
[408573201,1773899460977,-541.902195,0.00015,2]
[408573202,1773899460986,-151.0,0.00015,2]
[408573203,1773899460996,-186.812431,0.00015,2]
[408573204,1773899461006,-3847.171813,0.00015,2]
[408573205,1773899461015,-541.902195,0.00015,2]
[408573206,1773899461024,-151.0,0.00015,2]
[408573207,1773899461034,-186.812431,0.00015,2]
[408573208,1773899461044,-3847.171813,0.00015,2]
[408573209,1773899461053,-541.902195,0.00015,2]
[408573210,1773899461062,-151.0,0.00015,2]
[408573211,1773899461071,-280.24666,0.00015,2]
[408573212,1773899461080,-186.812431,0.00015,2]
[408573213,1773899461089,-541.902195,0.00015,2]
[408573214,1773899461098,-612.39,0.00015,2]
[408573215,1773899461108,-280.24666,0.00015,2]
[408573216,1773899461118,-500.0,0.00015,2]
[408573217,1773899461126,-186.812431,0.00015,2]
[408573218,1773899461135,-500.0,0.00015,2]
[408573219,1773899461144,-500.0,0.00015,2]
[408573220,1773899461153,-280.24666,0.00015,2]
[408573221,1773899461162,-423.72,0.00015,2]
[408573222,1773899461171,-280.24666,0.00015,2]
[408573223,1773899461181,-2000.0,0.00015033,2]
[408573224,1773899461190,-152.0,0.00015036,5]
[408573225,1773899461199,-378.39,0.00015036,2]
[408573226,1773899461208,-1567.0,0.0001504,2]
[408573227,1773899461218,-1567.0,0.0001504,2]
[408573228,1773899461227,-161.0,0.0001504,2]
[408573229,1773899461236,-1252.0,0.00015044,2]
[408573230,1773899461245,-422.0,0.00015068,2]
[408573231,1773899461254,-237.501002,0.00015068,2]
[408573232,1773899461263,-3134.15,0.00015068,2]
[408573233,1773899461272,-900.0,0.00015068,2]
[408573234,1773899461281,-504.0,0.00015087,3]
[408573235,1773899461290,-9502.94,0.000151,2]
[408573236,1773899461299,-3802.24611417,0.0001511,2]
[408573237,1773899461308,-800.0,0.0001513,2]
[408573238,1773899461317,-800.0,0.0001513,2]
[408573239,1773899461326,-800.0,0.0001513,2]
[408573240,1773899461335,-800.0,0.0001513,2]
[408573241,1773899461343,-800.0,0.0001513,2]
[408573242,1773899461354,-800.0,0.0001513,2]
[408573243,1773899461363,-800.0,0.0001513,2]
[408573244,1773899461373,-800.0,0.0001513,2]
[408573245,1773899461382,-800.0,0.0001513,2]
[408573246,1773899461391,-748.0,0.0001513,2]
[408573247,1773899461401,-2000.0,0.00015133,2]
[408573248,1773899461410,-1600.0,0.00015142,2]
[408573249,1773899461419,-1000.0,0.00015142,2]
[408573250,1773899461430,-4609.0,0.00015158,2]
[408573251,1773899461440,-1000.0,0.00015182,2]
[408573252,1773899461450,-208.12,0.00015187,2]
[408573253,1773899461461,-6884.11025588,0.000152,2]
[408573254,1773899461471,-5000.0,0.000152,2]
[408573255,1773899461479,-152.0,0.00015204,6]
[408573256,1773899461489,-422.0,0.00015205,2]
[408573257,1773899461498,-1000.0,0.00015215,2]
[408573258,1773899461507,-1000.0,0.00015226,2]
[408573259,1773899461516,-2000.0,0.00015233,2]
[408573260,1773899461525,-208.12,0.00015236,2]
[408573261,1773899461534,-1000.0,0.00015242,2]
[408573262,1773899461543,-1000.0,0.00015255,2]
[408573263,1773899461555,-1047.24314573,0.00015268,2]
[408573264,1773899461565,-3609.92329877,0.00015274,2]
[408573265,1773899461574,-261.0,0.00015299,3]
[408573266,1773899461583,-150.0,0.00015321,2]
[408573267,1773899461595,-154.62815875,0.0001533,2]
[408573268,1773899461604,-500.0,0.0001533,2]
[408573269,1773899461613,-500.0,0.0001533,2]
[408573270,1773899461623,-500.0,0.0001533,2]
[408573271,1773899461633,-500.0,0.0001533,2]
[408573272,1773899461642,-500.0,0.0001533,5]
[408573273,1773899461652,-500.0,0.0001533,5]
[408573274,1773899461662,-500.0,0.0001533,5]
[408573275,1773899461671,-500.0,0.0001533,2]
[408573276,1773899461680,-500.0,0.0001533,2]
[408573277,1773899461689,-500.0,0.0001533,2]
[408573278,1773899461698,-719.56591678,0.00015332,2]
[408573279,1773899461708,-2000.0,0.00015333,2]
[408573280,1773899461717,-422.0,0.00015342,2]
[408573281,1773899461726,-1499.94158246,0.00015342,2]
[408573282,1773899461735,-2000.0,0.00015342,2]
[408573283,1773899461744,-2000.0,0.00015342,2]
[408573284,1773899461754,-2000.0,0.00015342,2]
[408573285,1773899461763,-578.73590627,0.00015342,2]
[408573286,1773899461772,-232.68961964,0.00015342,2]
[408573287,1773899461780,-2000.0,0.00015342,2]
[408573288,1773899461789,-2000.0,0.00015342,2]
[408573289,1773899461798,-931.42701484,0.00015342,2]
[408573290,1773899461807,-1676.1614452,0.00015342,2]
[408573291,1773899461816,-2000.0,0.00015342,2]
[408573292,1773899461825,-2000.0,0.00015342,2]
[408573293,1773899461834,-455.72571989,0.00015342,2]
[408573294,1773899461843,-2000.0,0.00015342,2]
[408573295,1773899461852,-2000.0,0.00015342,2]
[408573296,1773899461861,-2000.0,0.00015342,2]
[408573297,1773899461870,-2000.0,0.00015342,2]
[408573298,1773899461879,-2000.0,0.00015342,2]
[408573299,1773899461889,-2000.0,0.00015342,2]
[408573300,1773899461899,-2074.83203376,0.00015342,2]
[408573301,1773899461910,-2000.0,0.00015342,2]
[408573302,1773899461919,-2000.0,0.00015342,2]
[408573303,1773899461928,-1887.45023446,0.00015342,2]
[408573304,1773899461938,-1050.20986564,0.00015342,2]
[408573305,1773899461947,-150.0,0.00015359,2]
[408573306,1773899461956,-1567.0,0.0001536,2]
[408573307,1773899461965,-2402.0,0.0001536,2]
[408573308,1773899461974,-166.66,0.00015369,2]
[408573309,1773899461983,-152.0,0.00015371,7]
[408573310,1773899461992,-1000.0,0.00015376,2]
[408573311,1773899462002,-350.0,0.00015389,2]
[408573312,1773899462011,-511.52743554,0.000154,2]
[408573313,1773899462020,-150.0,0.00015403,2]
[408573314,1773899462029,-1000.0,0.00015418,2]
[408573315,1773899462038,-2000.0,0.00015433,2]
[408573316,1773899462047,-1000.0,0.0001544,2]
[408573317,1773899462056,-251.0,0.00015443,2]
[408573318,1773899462066,-1700.0,0.00015452,2]
[408573319,1773899462076,-2600.0,0.00015452,2]
[408573320,1773899462086,-1100.0,0.00015452,2]
[408573321,1773899462095,-150.0,0.00015459,2]
[408573322,1773899462105,-1000.0,0.00015459,2]
[408573323,1773899462115,-150.0,0.0001546,2]
[408573324,1773899462124,-2402.0,0.00015465,2]
[408573325,1773899462134,-2402.0,0.00015465,2]
[408573326,1773899462143,-422.0,0.00015479,2]
[408573327,1773899462152,-150.0,0.0001548,2]
[408573328,1773899462163,-300.4,0.00015487,2]
[408573329,1773899462172,-1228.88155727,0.000155,2]
[408573330,1773899462182,-4000.0,0.00015507,2]
[408573331,1773899462191,-1000.0,0.00015509,2]
[408573332,1773899462201,-299.0,0.00015514,2]
[408573333,1773899462210,-1000.0,0.00015516,2]
[408573334,1773899462219,-1000.0,0.0001552,2]
[408573335,1773899462229,-168.0,0.00015521,2]
[408573336,1773899462237,-2000.0,0.00015533,2]
[408573337,1773899462247,-152.0,0.00015539,8]
[408573338,1773899462256,-1000.0,0.00015584,2]
[408573339,1773899462266,-800.0,0.000156,5]
[408573340,1773899462275,-422.0,0.00015616,2]
[408573341,1773899462284,-1000.0,0.00015622,2]
[408573342,1773899462293,-2000.0,0.00015633,2]
[408573343,1773899462303,-150.0,0.00015634,2]
[408573344,1773899462313,-2402.0,0.0001564,2]
[408573345,1773899462322,-150.0,0.00015654,2]
[408573346,1773899462331,-3922.94171058,0.0001568,2]
[408573347,1773899462341,-2402.0,0.0001568,2]
[408573348,1773899462350,-2402.0,0.0001568,2]
[408573349,1773899462359,-161.0,0.0001568,2]
[408573350,1773899462368,-251.0,0.00015696,2]
[408573351,1773899462378,-800.0,0.000157,5]
[408573352,1773899462386,-152.0,0.00015707,9]
[408573353,1773899462396,-150.0,0.0001573,2]
[408573354,1773899462404,-2000.0,0.00015733,2]
[408573355,1773899462414,-3134.15,0.00015753,2]
[408573356,1773899462423,-1567.0,0.0001578,2]
[408573357,1773899462433,-1000.0,0.00015792,2]
[408573358,1773899462442,-1000.0,0.00015797,2]
[408573359,1773899462452,-800.0,0.000158,5]
[408573360,1773899462461,-2254.45345603,0.00015807,2]
[408573361,1773899462470,-150.0,0.00015816,2]
[408573362,1773899462479,-166.66,0.00015817,2]
[408573363,1773899462488,-2000.0,0.00015833,2]
[408573364,1773899462498,-1000.0,0.0001584,2]
[408573365,1773899462507,-1000.0,0.0001584,2]
[408573366,1773899462516,-1000.0,0.0001584,2]
[408573367,1773899462526,-621.0,0.00015845,2]
[408573368,1773899462535,-168.0,0.00015855,2]
[408573369,1773899462544,-500.0,0.00015863,2]
[408573370,1773899462557,-150.0,0.00015865,2]
[408573371,1773899462567,-1000.0,0.00015865,2]
[408573372,1773899462576,-200.0,0.00015872,2]
[408573373,1773899462585,-152.0,0.00015875,10]
[408573374,1773899462595,-350.0,0.00015887,2]
[408573375,1773899462604,-2500.0,0.0001589,2]
[408573376,1773899462613,-2500.0,0.0001589,2]
[408573377,1773899462623,-2500.0,0.0001589,2]
[408573378,1773899462633,-1156.4847291,0.0001589,2]
[408573379,1773899462642,-2500.0,0.0001589,2]
[408573380,1773899462651,-2500.0,0.0001589,2]
[408573381,1773899462660,-2500.0,0.0001589,2]
[408573382,1773899462670,-2601.20422733,0.0001589,2]
[408573383,1773899462680,-461.15092032,0.0001589,2]
[408573384,1773899462689,-2500.0,0.0001589,2]
[408573385,1773899462699,-534.68838991,0.0001589,2]
[408573386,1773899462709,-919.75064279,0.0001589,2]
[408573387,1773899462718,-2500.0,0.0001589,2]
[408573388,1773899462728,-800.27066196,0.0001589,2]
[408573389,1773899462738,-1506.68098994,0.0001589,2]
[408573390,1773899462747,-25000.0,0.00015891,3]
[408573391,1773899462757,-176.9670118,0.00015892,7]
[408573392,1773899462766,-4000.0,0.00015895,2]
[408573393,1773899462775,-25000.0,0.000159,3]
[408573394,1773899462785,-11802.34416101,0.000159,3]
[408573395,1773899462795,-150.0,0.000159,2]
[408573396,1773899462805,-150.0,0.000159,2]
[408573397,1773899462814,-150.0,0.000159,2]
[408573398,1773899462823,-13120.98571702,0.000159,3]
[408573399,1773899462833,-150.0,0.000159,2]
[408573400,1773899462842,-173.1841697,0.000159,2]
[408573401,1773899462852,-150.0,0.000159,2]
[408573402,1773899462862,-349.62164254,0.000159,2]
[408573403,1773899462872,-150.0,0.000159,2]
[408573404,1773899462881,-150.0,0.000159,2]
[408573405,1773899462891,-150.0,0.000159,2]
[408573406,1773899462900,-150.0,0.000159,2]
[408573407,1773899462909,-1113.0,0.000159,5]
[408573408,1773899462919,-3802.24611417,0.000159,2]
[408573409,1773899462928,-595.71313793,0.000159,2]
[408573410,1773899462937,-150.0,0.000159,2]
[408573411,1773899462946,-206.54034863,0.000159,2]
[408573412,1773899462955,-517.91321105,0.000159,2]
[408573413,1773899462964,-2645.0,0.000159,5]
[408573414,1773899462974,-150.0,0.00015904,2]
[408573415,1773899462984,-150.0,0.00015911,2]
[408573416,1773899462993,-1000.0,0.00015922,2]
[408573417,1773899463002,-621.0,0.00015923,2]
[408573418,1773899463012,-2000.0,0.00015933,2]
[408573419,1773899463021,-1346.65249792,0.00015939,10]
[408573420,1773899463031,-621.0,0.0001594,2]
[408573421,1773899463045,-255.5773431,0.00015955,2]
[408573422,1773899463054,-387.84103521,0.00015955,2]
[408573423,1773899463063,-268.04458326,0.00015955,2]
[408573424,1773899463073,-251.0,0.00015962,2]
[408573425,1773899463082,-504.0,0.00015964,4]
[408573426,1773899463091,-151.0,0.00015966,2]
[408573427,1773899463100,-151.0,0.00015966,2]
[408573428,1773899463109,-151.0,0.00015966,2]
[408573429,1773899463120,-151.0,0.00015966,2]
[408573430,1773899463129,-258.166951,0.00015966,2]
[408573431,1773899463138,-168.676837,0.00015966,2]
[408573432,1773899463147,-258.166951,0.00015966,2]
[408573433,1773899463156,-258.166951,0.00015966,2]
[408573434,1773899463166,-258.166951,0.00015966,2]
[408573435,1773899463176,-151.0,0.00015966,2]
[408573436,1773899463185,-151.0,0.00015966,2]
[408573437,1773899463194,-514.779081,0.00015966,2]
[408573438,1773899463203,-514.779081,0.00015966,2]
[408573439,1773899463213,-514.779081,0.00015966,2]
[408573440,1773899463223,-514.779081,0.00015966,2]
[408573441,1773899463232,-151.0,0.00015966,2]
[408573442,1773899463243,-946.660142,0.00015966,2]
[408573443,1773899463252,-946.660142,0.00015966,2]
[408573444,1773899463261,-946.660142,0.00015966,2]
[408573445,1773899463270,-946.660142,0.00015966,2]
[408573446,1773899463279,-150.0,0.00015967,2]
[408573447,1773899463289,-700.0,0.0001597,2]
[408573448,1773899463298,-700.0,0.0001597,2]
[408573449,1773899463307,-700.0,0.0001597,2]
[408573450,1773899463317,-700.0,0.0001597,2]
[408573451,1773899463327,-700.0,0.0001597,2]
[408573452,1773899463336,-700.0,0.0001597,2]
[408573453,1773899463345,-700.0,0.0001597,2]
[408573454,1773899463354,-700.0,0.0001597,2]
[408573455,1773899463363,-704.56000601,0.0001597,2]
[408573456,1773899463373,-1000.0,0.00015986,2]
[408573457,1773899463382,-150.0,0.00015992,2]
[408573458,1773899463391,-151.0,0.00015997,2]
[408573459,1773899463401,-174.47964956,0.00015999,2]
[408573460,1773899463410,-270899.96127289,0.00016,2]
[408573461,1773899464030,-2465.0,0.00014348,2]
[408573462,1773899464039,-437248.1392126,0.00016,2]
[408573463,1773899464050,-10745.983256,0.00016,2]
[408573464,1773899464532,-32.41211346,0.00011921,2]
[408573465,1773899464592,-28.31011908,0.00011921,2]
[408573466,1773899464625,-234.07713746,0.00011921,2]
[408573467,1773899464634,-151.0,0.00014247,2]
[408573468,1773899464644,-187.897916,0.00014247,2]
[408573469,1773899464654,-1024.39301355,0.00014247,2]
[408573470,1773899464665,-1749.64337345,0.00014247,2]
[408573471,1773899464674,-1088.37609,0.00014247,2]
[408573472,1773899464683,-151.0,0.00014247,2]
[408573473,1773899464692,-110.98053655,0.00014247,2]
[408573474,1773899464708,-76.91737945,0.00014247,2]
[408573475,1773899464718,-368.499213,0.00014305,7]
[408573476,1773899464728,-151.0,0.00015,2]
[408573477,1773899464737,-187.897916,0.00015,2]
[408573478,1773899464746,-2774.036387,0.00015,2]
[408573479,1773899464756,-112.69885367,0.00015,2]
[408573480,1773899464775,-666.00666864,0.00015,2]
[408573481,1773899465227,-2774.036387,0.00014247,2]
[408573482,1773899465236,-1088.37609,0.00014247,2]
[408573483,1773899465245,-151.0,0.00014247,2]
[408573484,1773899465254,-187.897916,0.00014247,2]
[408573485,1773899465263,-1088.37609,0.00014247,2]
[408573486,1773899465272,-2774.036387,0.00014247,2]
[408573487,1773899465282,-151.0,0.00014247,2]
[408573488,1773899465291,-309.67056769,0.00015,2]
[408573489,1773899465300,-187.897916,0.00015,2]
[408573490,1773899465309,-2774.036387,0.00015,2]
[408573491,1773899465318,-1088.37609,0.00015,2]
[408573492,1773899465327,-151.0,0.00015,2]
[408573493,1773899465337,-187.897916,0.00015,2]
[408573494,1773899465346,-1088.37609,0.00015,2]
[408573495,1773899465355,-2774.036387,0.00015,2]
[408573496,1773899465365,-151.0,0.00015,2]
[408573497,1773899465374,-517.91321089,0.000159,2]
[408573498,1773899465384,-28818.91539482,0.00016,2]
[408573499,1773899498623,10000.01,0.00010255,2]
[408573500,1773899498650,10000.01,0.00010255,2]
[408573501,1773899504156,-10000.01,0.00010255,2]
[408573502,1773899522558,-10000.01,0.00010255,2]
[408573503,1773899522748,-10000.01,0.00010255,2]
[408573504,1773899522850,-10000.01,0.00010255,2]
[408573505,1773899522958,-10000.01,0.00010255,2]
[408573506,1773899523047,-10000.01,0.00010255,2]
[408573507,1773899523263,-10000.01,0.00010255,2]
[408573508,1773899523394,-10000.01,0.00010255,2]
[408573509,1773899523588,-10000.01,0.00010255,2]
[408573510,1773899523700,-10000.01,0.00010255,2]
[408573511,1773899527437,500.0,9.8e-05,3]
[408573512,1773899528355,-150.0,0.00010255,3]
[408573513,1773899528403,-9700.01,0.00010255,2]
[408573514,1773899528445,-10000.01,0.00010255,2]
[408573515,1773899528554,-10000.01,0.00010255,2]
[408573516,1773899528675,-10000.01,0.00010255,2]
[408573517,1773899528845,-10000.01,0.00010255,2]
[408573518,1773899528915,-10000.01,0.00010255,2]
[408573519,1773899529007,-10000.01,0.00010255,2]
[408573520,1773899529118,-10000.01,0.00010255,2]
[408573521,1773899529226,-10000.01,0.00010255,2]
[408573522,1773899529536,1000.0,9.9e-05,3]
[408573523,1773899531633,1500.0,0.0001,3]
[408573524,1773899546629,-373.95627555,0.000101,2]
[408573525,1773899546658,-151.0,0.00010252,2]
[408573526,1773899546686,-151.0,0.00010252,2]
[408573527,1773899546765,-8648.0974489,0.00010255,2]
[408573528,1773899546792,-10000.01,0.00010255,2]
[408573529,1773899546919,-10000.01,0.00010255,2]
[408573530,1773899547067,-10000.01,0.00010255,2]
[408573531,1773899547142,-10000.01,0.00010255,2]
[408573532,1773899547246,-10000.01,0.00010255,2]
[408573533,1773899547790,-10000.01,0.00010255,2]
[408573534,1773899547970,-10000.01,0.00010255,2]
[408573535,1773899548030,-10000.01,0.00010255,2]
[408573536,1773899552659,-10000.01,0.00010255,2]
[408573537,1773899552866,-10000.01,0.00010255,2]
[408573538,1773899552987,-10000.01,0.00010255,2]
[408573539,1773899553090,-10000.01,0.00010255,2]
[408573540,1773899553232,-10000.01,0.00010255,2]
[408573541,1773899553372,-10000.01,0.00010255,2]
[408573542,1773899553489,-10000.01,0.00010255,2]
[408573543,1773899553600,-10000.01,0.00010255,2]
[408573544,1773899553702,-10000.01,0.00010255,2]
[408573545,1773899608717,172.6,9.508e-05,2]
[408573546,1773899645391,150.0,9.508e-05,3]
[408573547,1773899676648,400.0,9.8e-05,3]
[408573548,1773899679103,800.0,9.9e-05,3]
[408573549,1773899680834,1200.0,0.0001,3]
[408573550,1773899706968,156.0,0.0001,3]
[408573551,1773899707371,-160.0,0.00010246,2]
[408573552,1773899707407,-300.0,0.00010253,2]
[408573553,1773899707438,-1200.0,0.00010253,2]
[408573554,1773899707465,-1200.0,0.00010254,2]
[408573555,1773899707492,-150.0,0.00010254,2]